fUSD/lending_fUSD_20250609
["ID","MTS","AMOUNT","RATE_DAILY","PERIOD"]
[365101272,1749466256156,-3488.09,0.00021917,2]
[365101273,1749466256168,-480.0,0.00021917,2]
[365101274,1749466256178,-3488.09,0.00021917,2]
[365101275,1749466256187,-480.0,0.00021917,2]
[365101276,1749466256196,-3488.09,0.00021917,2]
[365101277,1749466256205,-480.0,0.00021917,2]
[365101278,1749466256215,-3488.09,0.00021917,2]
[365101279,1749466256224,-3488.09,0.00021917,2]
[365101280,1749466256233,-3488.09,0.00021917,2]
[365101281,1749466256242,-480.0,0.00021917,2]
[365101282,1749466256251,-3488.09,0.00021917,2]
[365101283,1749466256260,-3488.09,0.00021917,2]
[365101284,1749466256270,-930.43,0.00021917,2]
[365101285,1749466256279,-3488.09,0.00021917,2]
[365101286,1749466256288,-3488.09,0.00021917,2]
[365101287,1749466256297,-3488.09,0.00021917,2]
[365101288,1749466256306,-480.0,0.00021917,2]
[365101289,1749466256316,-480.0,0.00021917,2]
[365101290,1749466256325,-3488.09,0.00021917,2]
[365101291,1749466256335,-1053.13,0.00021917,2]
[365101292,1749466256344,-3488.09,0.00021917,2]
[365101293,1749466256353,-3488.09,0.00021917,2]
[365101294,1749466256363,-3488.09,0.00021917,2]
[365101295,1749466256372,-3488.15877017,0.00021917,2]
[365101296,1749466256382,-460.0,0.00021917,2]
[365101297,1749466256391,-480.0,0.00021917,2]
[365101298,1749466256400,-480.0,0.00021917,2]
[365101299,1749466256410,-1168.79,0.00021917,2]
[365101300,1749466256419,-3634.78,0.00021917,2]
[365101301,1749466256429,-480.0,0.00021917,2]
[365101302,1749466256438,-460.0,0.00021917,2]
[365101303,1749466256448,-485.82997766,0.00021917,2]
[365101304,1749466256457,-480.0,0.00021917,2]
[365101305,1749466256467,-544.14,0.00021917,2]
[365101306,1749466256477,-2162.95,0.00021917,2]
[365101307,1749466256486,-480.0,0.00021917,2]
[365101308,1749466256495,-2972.79,0.00021917,2]
[365101309,1749466256505,-480.0,0.00021917,2]
[365101310,1749466256515,-3584.42,0.00021917,2]
[365101311,1749466256525,-460.0,0.00021917,2]
[365101312,1749466256535,-480.0,0.00021917,2]
[365101313,1749466256543,-809.64,0.00021917,2]
[365101314,1749466256557,-480.0,0.00021917,2]
[365101315,1749466256567,-480.0,0.00021917,2]
[365101316,1749466256577,-480.0,0.00021917,2]
[365101317,1749466256587,-460.0,0.00021917,2]
[365101318,1749466256597,-728.18,0.00021917,2]
[365101319,1749466256607,-480.0,0.00021917,2]
[365101320,1749466256616,-480.0,0.00021917,2]
[365101321,1749466256626,-1385.91,0.00021917,2]
[365101322,1749466256635,-480.0,0.00021917,2]
[365101323,1749466256645,-480.0,0.00021917,2]
[365101324,1749466256655,-1096.99,0.00021917,2]
[365101325,1749466256664,-1473.1,0.00021917,2]
[365101326,1749466256674,-486.76359595,0.00021917,2]
[365101327,1749466256683,-624.98,0.00021917,2]
[365101328,1749466256693,-480.0,0.00021917,2]
[365101329,1749466256702,-460.0,0.00021917,2]
[365101330,1749466256713,-480.0,0.00021917,2]
[365101331,1749466256722,-508.07734909,0.00021917,2]
[365101332,1749466256732,-8102.77,0.00021917,2]
[365101333,1749466256742,-1270.19,0.00021917,2]
[365101334,1749466256751,-480.0,0.00021917,2]
[365101335,1749466256761,-460.0,0.00021917,2]
[365101336,1749466256780,-427.33262794,0.00021917,2]
[365101337,1749466256790,-921.01,0.00021917,2]
[365101338,1749466256801,-742.56,0.00021917,2]
[365101339,1749466256812,-700.38,0.00021917,2]
[365101340,1749466256823,-480.0,0.00021917,2]
[365101341,1749466256833,-466.72388939,0.00021917,2]
[365101342,1749466256842,-4688.74,0.00021917,2]
[365101343,1749466256851,-480.0,0.00021917,2]
[365101344,1749466256861,-480.0,0.00021917,2]
[365101345,1749466256872,-480.0,0.00021917,2]
[365101346,1749466256882,-464.75531448,0.00021917,2]
[365101347,1749466256891,-1050.35,0.00021917,2]
[365101348,1749466256901,-480.0,0.00021917,2]
[365101349,1749466256912,-3444.96,0.00021917,2]
[365101350,1749466256923,-480.0,0.00021917,2]
[365101351,1749466256932,-798.33,0.00021917,2]
[365101352,1749466256941,-480.0,0.00021917,2]
[365101353,1749466256951,-480.0,0.00021917,2]
[365101354,1749466256961,-480.0,0.00021917,2]
[365101355,1749466256970,-495.79627939,0.00021917,2]
[365101356,1749466256980,-1829.52,0.00021917,2]
[365101357,1749466256990,-480.0,0.00021917,2]
[365101358,1749466256999,-1101.27,0.00021917,2]
[365101359,1749466257009,-480.0,0.00021917,2]
[365101360,1749466257019,-1841.11,0.00021917,2]
[365101361,1749466257029,-460.0,0.00021917,2]
[365101362,1749466257038,-480.0,0.00021917,2]
[365101363,1749466257053,-300.0,0.00021917,2]
[365101364,1749466257064,-460.0,0.00021917,2]
[365101365,1749466257073,-1376.3,0.00021917,2]
[365101366,1749466257084,-480.0,0.00021917,2]
[365101367,1749466257093,-1587.83,0.00021917,2]
[365101368,1749466257103,-480.0,0.00021917,2]
[365101369,1749466257113,-465.5828233,0.00021917,2]
[365101370,1749466257123,-1542.9,0.00021917,2]
[365101371,1749466257133,-984.27,0.00021917,2]
[365101372,1749466257143,-480.0,0.00021917,2]
[365101373,1749466257153,-1621.12,0.00021917,2]
[365101374,1749466257163,-460.0,0.00021917,2]
[365101375,1749466257172,-1477.46,0.00021917,2]
[365101376,1749466257183,-501.35379227,0.00021917,2]
[365101377,1749466257193,-480.0,0.00021917,2]
[365101378,1749466257203,-480.0,0.00021917,2]
[365101379,1749466257213,-587.12505645,0.00021917,2]
[365101380,1749466257222,-480.0,0.00021917,2]
[365101381,1749466257232,-480.0,0.00021917,2]
[365101382,1749466257242,-480.0,0.00021917,2]
[365101383,1749466257251,-304.96566997,0.00021917,2]
[365101384,1749466257261,-480.0,0.00021917,2]
[365101385,1749466257271,-480.0,0.00021917,2]
[365101386,1749466257280,-480.0,0.00021917,2]
[365101387,1749466257289,-1359.2,0.00021917,2]
[365101388,1749466257299,-4458.34,0.00021917,2]
[365101389,1749466257308,-971.96,0.00021917,2]
[365101390,1749466257318,-1823.89,0.00021917,2]
[365101391,1749466257328,-480.0,0.00021917,2]
[365101392,1749466257337,-460.0,0.00021917,2]
[365101393,1749466257347,-480.0,0.00021917,2]
[365101394,1749466257356,-460.0,0.00021917,2]
[365101395,1749466257367,-1550.43,0.00021917,2]
[365101396,1749466257376,-1733.85,0.00021917,2]
[365101397,1749466257385,-480.0,0.00021917,2]
[365101398,1749466257395,-486.27741131,0.00021917,2]
[365101399,1749466257404,-499.79,0.00021917,2]
[365101400,1749466257413,-286.91081917,0.00021917,2]
[365101401,1749466257423,-480.0,0.00021917,2]
[365101402,1749466257433,-480.0,0.00021917,2]
[365101403,1749466257443,-1130.97,0.00021917,2]
[365101404,1749466257453,-420.0,0.00021917,2]
[365101405,1749466257463,-484.26262203,0.00021917,2]
[365101406,1749466257472,-460.0,0.00021917,2]
[365101407,1749466257481,-2516.42,0.00021917,2]
[365101408,1749466257490,-480.0,0.00021917,2]
[365101409,1749466257501,-1613.59,0.00021917,2]
[365101410,1749466257511,-480.0,0.00021917,2]
[365101411,1749466257520,-460.0,0.00021917,2]
[365101412,1749466257530,-842.09,0.00021917,2]
[365101413,1749466257540,-2049.78,0.00021917,2]
[365101414,1749466257549,-2014.14,0.00021917,2]
[365101415,1749466257562,-460.0,0.00021917,2]
[365101416,1749466257572,-500.0,0.00021917,2]
[365101417,1749466257581,-500.0,0.00021917,2]
[365101418,1749466257590,-524.11,0.00021917,2]
[365101419,1749466257601,-500.0,0.00021917,2]
[365101420,1749466257611,-500.0,0.00021917,2]
[365101421,1749466257622,-500.0,0.00021917,2]
[365101422,1749466257635,-858.21,0.00021917,2]
[365101423,1749466257644,-500.0,0.00021917,2]
[365101424,1749466257818,-504.98593338,0.00021917,2]
[365101425,1749466257828,-636.45,0.00021917,2]
[365101426,1749466257837,-197.88179417,0.00021917,2]
[365101427,1749466257848,-749.74,0.00021917,2]
[365101428,1749466257857,-480.0,0.00021917,2]
[365101429,1749466257866,-480.0,0.00021917,2]
[365101430,1749466257876,-171.03971549,0.00021917,2]
[365101431,1749466257885,-619.63,0.00021917,2]
[365101432,1749466257894,-480.0,0.00021917,2]
[365101433,1749466257903,-460.0,0.00021917,2]
[365101434,1749466257912,-489.97644543,0.00021917,2]
[365101435,1749466257922,-1156.28,0.00021917,2]
[365101436,1749466257931,-480.0,0.00021917,2]
[365101437,1749466257941,-480.0,0.00021917,2]
[365101438,1749466257950,-480.0,0.00021917,2]
[365101439,1749466257959,-480.82,0.00021917,2]
[365101440,1749466257968,-480.0,0.00021917,2]
[365101441,1749466257978,-480.0,0.00021917,2]
[365101442,1749466257987,-473.82326561,0.00021917,2]
[365101443,1749466257996,-2181.65,0.00021917,2]
[365101444,1749466258007,-1314.95,0.00021917,2]
[365101445,1749466258016,-480.0,0.00021917,2]
[365101446,1749466258026,-480.0,0.00021917,2]
[365101447,1749466258035,-480.0,0.00021917,2]
[365101448,1749466258044,-460.0,0.00021917,2]
[365101449,1749466258054,-500.01491436,0.00021917,2]
[365101450,1749466258063,-480.0,0.00021917,2]
[365101451,1749466258072,-814.24,0.00021917,2]
[365101452,1749466258082,-480.0,0.00021917,2]
[365101453,1749466258092,-775.44,0.00021917,2]
[365101454,1749466258101,-460.0,0.00021917,2]
[365101455,1749466258110,-480.0,0.00021917,2]
[365101456,1749466258120,-2038.4,0.00021917,2]
[365101457,1749466258129,-400.69838299,0.00021917,2]
[365101458,1749466258138,-703.6,0.00021917,2]
[365101459,1749466258147,-480.0,0.00021917,2]
[365101460,1749466258157,-480.0,0.00021917,2]
[365101461,1749466258166,-530.15,0.00021917,2]
[365101462,1749466258176,-1959.96,0.00021917,2]
[365101463,1749466258185,-480.0,0.00021917,2]
[365101464,1749466258194,-1064.45,0.00021917,2]
[365101465,1749466258203,-424.18306172,0.00021917,2]
[365101466,1749466258213,-487.93759293,0.00021917,2]
[365101467,1749466258222,-480.0,0.00021917,2]
[365101468,1749466258231,-480.0,0.00021917,2]
[365101469,1749466258241,-480.0,0.00021917,2]
[365101470,1749466258250,-2187.12,0.00021917,2]
[365101471,1749466258259,-480.0,0.00021917,2]
[365101472,1749466258268,-485.94985731,0.00021917,2]
[365101473,1749466258278,-1575.61,0.00021917,2]
[365101474,1749466258287,-468.83260305,0.00021917,2]
[365101475,1749466258296,-480.0,0.00021917,2]
[365101476,1749466258305,-480.0,0.00021917,2]
[365101477,1749466258315,-4715.19,0.00021917,2]
[365101478,1749466258324,-1442.76,0.00021917,2]
[365101479,1749466258333,-500.0,0.00021917,2]
[365101480,1749466258342,-518.91,0.00021917,2]
[365101481,1749466258351,-420.0,0.00021917,2]
[365101482,1749466258361,-438.96928541,0.00021917,2]
[365101483,1749466258370,-2734.29,0.00021917,2]
[365101484,1749466258380,-499.96805543,0.00021917,2]
[365101485,1749466258389,-1421.17,0.00021917,2]
[365101486,1749466258399,-480.0,0.00021917,2]
[365101487,1749466258408,-1615.73,0.00021917,2]
[365101488,1749466258418,-491.5708486,0.00021917,2]
[365101489,1749466258428,-2943.4,0.00021917,2]
[365101490,1749466258438,-421.31116083,0.00021917,2]
[365101491,1749466258447,-480.0,0.00021917,2]
[365101492,1749466258457,-480.0,0.00021917,2]
[365101493,1749466258466,-480.0,0.00021917,2]
[365101494,1749466258476,-480.0,0.00021917,2]
[365101495,1749466258486,-480.0,0.00021917,2]
[365101496,1749466258495,-612.54,0.00021917,2]
[365101497,1749466258505,-644.73,0.00021917,2]
[365101498,1749466258515,-460.0,0.00021917,2]
[365101499,1749466258524,-536.20134844,0.00021917,2]
[365101500,1749466258533,-488.61625459,0.00021917,2]
[365101501,1749466258543,-480.0,0.00021917,2]
[365101502,1749466258553,-480.0,0.00021917,2]
[365101503,1749466258564,-480.0,0.00021917,2]
[365101504,1749466258574,-1077.03,0.00021917,2]
[365101505,1749466258583,-729.14,0.00021917,2]
[365101506,1749466258593,-460.0,0.00021917,2]
[365101507,1749466258602,-234.09847022,0.00021917,2]
[365101508,1749466258612,-571.42,0.00021917,2]
[365101509,1749466258622,-410.03856207,0.00021917,2]
[365101510,1749466258631,-689.62,0.00021917,2]
[365101511,1749466258640,-688.45,0.00021917,2]
[365101512,1749466258650,-485.98,0.00021917,2]
[365101513,1749466258660,-788.82,0.00021917,2]
[365101514,1749466258669,-480.0,0.00021917,2]
[365101515,1749466258678,-460.0,0.00021917,2]
[365101516,1749466258688,-460.0,0.00021917,2]
[365101517,1749466258697,-480.0,0.00021917,2]
[365101518,1749466258706,-480.0,0.00021917,2]
[365101519,1749466258716,-480.0,0.00021917,2]
[365101520,1749466258725,-1117.4,0.00021917,2]
[365101521,1749466258735,-2047.14,0.00021917,2]
[365101522,1749466258744,-460.0,0.00021917,2]
[365101523,1749466258754,-480.0,0.00021917,2]
[365101524,1749466258764,-2506.81,0.00021917,2]
[365101525,1749466258774,-480.0,0.00021917,2]
[365101526,1749466258783,-1349.08,0.00021917,2]
[365101527,1749466258793,-480.0,0.00021917,2]
[365101528,1749466258814,-2560.04,0.00021917,2]
[365101529,1749466258823,-929.05,0.00021917,2]
[365101530,1749466258836,-423.41787596,0.00021917,2]
[365101531,1749466258846,-669.9,0.00021917,2]
[365101532,1749466258855,-2290.7,0.00021917,2]
[365101533,1749466258865,-480.0,0.00021917,2]
[365101534,1749466258875,-480.0,0.00021917,2]
[365101535,1749466258884,-488.33123306,0.00021917,2]
[365101536,1749466258893,-491.67404145,0.00021917,2]
[365101537,1749466258903,-460.0,0.00021917,2]
[365101538,1749466258912,-1676.96,0.00021917,2]
[365101539,1749466258922,-480.0,0.00021917,2]
[365101540,1749466258931,-500.0,0.00021917,2]
[365101541,1749466258941,-500.0,0.00021917,2]
[365101542,1749466258950,-480.0,0.00021917,2]
[365101543,1749466258960,-500.0,0.00021917,2]
[365101544,1749466258970,-500.0,0.00021917,2]
[365101545,1749466258980,-180.27429648,0.00021917,2]
[365101546,1749466258990,-1629.23,0.00021917,2]
[365101547,1749466259000,-485.70841072,0.00021917,2]
[365101548,1749466259011,-1052.59,0.00021917,2]
[365101549,1749466259020,-1095.58,0.00021917,2]
[365101550,1749466259030,-460.0,0.00021917,2]
[365101551,1749466259041,-462.48584906,0.00021917,2]
[365101552,1749466259051,-480.0,0.00021917,2]
[365101553,1749466259060,-480.0,0.00021917,2]
[365101554,1749466259070,-642.78,0.00021917,2]
[365101555,1749466259081,-500.0,0.00021918,2]
[365101556,1749466259090,-150.0,0.00021918,2]
[365101557,1749466259101,-181.08010149,0.00021918,2]
[365101558,1749466259110,-1491.71,0.00021945,30]
[365101559,1749466259120,-500.0,0.00021945,2]
[365101560,1749466259129,-500.0,0.00021973,2]
[365101561,1749466259140,-327.13957186,0.00021973,2]
[365101562,1749466259151,-500.0,0.00021973,2]
[365101563,1749466259161,-501.6006789,0.00021973,2]
[365101564,1749466259170,-539.84296213,0.00021973,2]
[365101565,1749466259179,-501.05804049,0.00021973,2]
[365101566,1749466259189,-502.80948645,0.00021973,2]
[365101567,1749466259199,-500.0,0.00021973,2]
[365101568,1749466259208,-159.90029393,0.00021973,2]
[365101569,1749466259217,-506.48522923,0.00021973,2]
[365101570,1749466259226,-500.0,0.00021973,2]
[365101571,1749466259237,-500.0,0.00021973,2]
[365101572,1749466259246,-500.0,0.00021973,2]
[365101573,1749466259255,-500.0,0.00021973,2]
[365101574,1749466259264,-503.52799915,0.00021973,2]
[365101575,1749466259273,-317.2465053,0.00021973,2]
[365101576,1749466259283,-503.96557437,0.00021973,2]
[365101577,1749466259293,-500.0,0.00021973,2]
[365101578,1749466259302,-500.0,0.00021973,2]
[365101579,1749466259311,-153.48794867,0.00021973,2]
[365101580,1749466259320,-500.0,0.00021973,2]
[365101581,1749466259329,-500.0,0.00021973,2]
[365101582,1749466259340,-500.0,0.00021973,2]
[365101583,1749466259351,-500.0,0.00021973,2]
[365101584,1749466259360,-508.67689924,0.00021973,2]
[365101585,1749466259370,-526.71063269,0.00021973,2]
[365101586,1749466259379,-502.91236962,0.00021973,2]
[365101587,1749466259388,-155.16637728,0.00021973,2]
[365101588,1749466259397,-500.0,0.00021973,2]
[365101589,1749466259407,-4000.0,0.00022,4]
[365101590,1749466259416,-242.24043997,0.00022,2]
[365101591,1749466259425,-150.0,0.00022055,5]
[365101592,1749466259434,-253.00072592,0.00022055,5]
[365101593,1749466259443,-159.78,0.00022081,2]
[365101594,1749466259453,-159.78,0.00022081,2]
[365101595,1749466259462,-159.78,0.00022081,2]
[365101596,1749466259471,-159.78,0.00022081,2]
[365101597,1749466259480,-159.78,0.00022081,2]
[365101598,1749466259490,-159.78,0.00022081,2]
[365101599,1749466259500,-159.78,0.00022081,2]
[365101600,1749466259509,-159.78,0.00022081,2]
[365101601,1749466259519,-159.78,0.00022081,2]
[365101602,1749466259528,-159.78,0.00022081,2]
[365101603,1749466259537,-150.0,0.00022082,2]
[365101604,1749466259547,-152.47083393,0.00022082,2]
[365101605,1749466259560,-150.0,0.00022082,2]
[365101606,1749466259571,-8770.4151899,0.000221,2]
[365101607,1749466259580,-1006.0,0.00022101,3]
[365101608,1749466259589,-2500.0,0.00022164,2]
[365101609,1749466259600,-2500.0,0.00022164,2]
[365101610,1749466259610,-300.0,0.00022192,2]
[365101611,1749466259619,-7000.0,0.000222,2]
[365101612,1749466259629,-1397.85,0.00022227,2]
[365101613,1749466259639,-640.0,0.00022407,2]
[365101614,1749466259651,-187.78006525,0.00022466,2]
[365101615,1749466259660,-1026.64725523,0.00022521,2]
[365101616,1749466259669,-709.41380085,0.00022521,2]
[365101617,1749466259678,-1000.0,0.00022521,2]
[365101618,1749466259687,-1000.0,0.00022521,2]
[365101619,1749466259696,-1000.0,0.00022521,2]
[365101620,1749466259706,-502.81335354,0.00022521,2]
[365101621,1749466259715,-1000.0,0.00022521,2]
[365101622,1749466259725,-1000.0,0.00022521,2]
[365101623,1749466259734,-501.56491372,0.00022521,2]
[365101624,1749466259744,-503.09284684,0.00022521,2]
[365101625,1749466259754,-1000.0,0.00022521,2]
[365101626,1749466259764,-526.21827727,0.00022521,2]
[365101627,1749466259773,-1000.0,0.0002256,2]
[365101628,1749466259783,-250.0,0.00022634,2]
[365101629,1749466259792,-1188.904,0.00022677,2]
[365101630,1749466259802,-926.0,0.00022677,2]
[365101631,1749466259811,-557.0,0.00022677,2]
[365101632,1749466259820,-852.0,0.00022677,2]
[365101633,1749466259830,-4084.0,0.00022677,2]
[365101634,1749466259839,-488.564,0.00022677,2]
[365101635,1749466259850,-1122.38582387,0.00022712,2]
[365101636,1749466259859,-3000.0,0.00022712,2]
[365101637,1749466259869,-562.57,0.00022739,2]
[365101638,1749466259878,-300.0,0.0002274,2]
[365101639,1749466259888,-1088.0,0.00022791,2]
[365101640,1749466259898,-174.32,0.00022849,2]
[365101641,1749466259908,-1000.0,0.00022888,2]
[365101642,1749466259918,-198921.0,0.00023,7]
[365101643,1749466259927,-833.29909032,0.00023,7]
[365101644,1749466259937,-833.29909032,0.00023,7]
[365101645,1749466259947,-200.0,0.00023,2]
[365101646,1749466259957,-4000.0,0.00023,4]
[365101647,1749466259967,-150.0,0.00023014,2]
[365101648,1749466259977,-194.72792766,0.00023014,2]
[365101649,1749466259987,-502.45833811,0.00023068,2]
[365101650,1749466259996,-702.82816443,0.00023068,2]
[365101651,1749466260006,-1500.0,0.00023068,2]
[365101652,1749466260016,-1500.0,0.00023068,2]
[365101653,1749466260026,-502.21300665,0.00023068,2]
[365101654,1749466260035,-3292.0,0.00023128,2]
[365101655,1749466260045,-223.0315306,0.00023181,2]
[365101656,1749466260055,-162.380719,0.00023181,2]
[365101657,1749466260066,-1037.0,0.00023182,2]
[365101658,1749466260076,-2000.0,0.0002326,2]
[365101659,1749466260086,-300.0,0.00023288,2]
[365101660,1749466260096,-1000.0,0.00023347,2]
[365101661,1749466260106,-150.99,0.00023368,2]
[365101662,1749466260115,-1818.35,0.00023368,2]
[365101663,1749466260126,-7000.0,0.0002345,2]
[365101664,1749466260135,-201.93286099,0.00023562,2]
[365101665,1749466260146,-2000.0,0.00023616,2]
[365101666,1749466260155,-2000.0,0.00023616,2]
[365101667,1749466260164,-1704.57,0.00023836,2]
[365101668,1749466260174,-300.0,0.00023836,2]
[365101669,1749466260185,-4000.0,0.00024,4]
[365101670,1749466260195,-1908.04,0.00024,31]
[365101671,1749466260204,-1908.04,0.00024,31]
[365101672,1749466260214,-1908.04,0.00024,31]
[365101673,1749466260223,-1908.04,0.00024,31]
[365101674,1749466260233,-1908.04,0.00024,31]
[365101675,1749466260243,-1908.04,0.00024,31]
[365101676,1749466260253,-1908.04,0.00024,31]
[365101677,1749466260263,-1908.04,0.00024,31]
[365101678,1749466260272,-1908.04,0.00024,31]
[365101679,1749466260282,-1908.04,0.00024,31]
[365101680,1749466260292,-1908.04,0.00024,31]
[365101681,1749466260301,-1908.04,0.00024,31]
[365101682,1749466260310,-1908.04,0.00024,31]
[365101683,1749466260319,-1908.04,0.00024,31]
[365101684,1749466260328,-1908.04,0.00024,31]
[365101685,1749466260338,-1908.04,0.00024,31]
[365101686,1749466260348,-1908.04,0.00024,31]
[365101687,1749466260358,-1908.04,0.00024,31]
[365101688,1749466260367,-1908.04,0.00024,31]
[365101689,1749466260377,-1908.04,0.00024,31]
[365101690,1749466260386,-500.0,0.00024,2]
[365101691,1749466260395,-562.57,0.00024109,2]
[365101692,1749466260404,-480.0,0.00024109,2]
[365101693,1749466260414,-357.97207267,0.0002411,2]
[365101694,1749466260424,-1000.0,0.00024134,2]
[365101695,1749466260435,-759.06610351,0.00024164,2]
[365101696,1749466260444,-2500.0,0.00024164,2]
[365101697,1749466260453,-150.0,0.00024384,2]
[365101698,1749466260465,-300.0,0.00024384,2]
[365101699,1749466260475,-1397.85,0.00024491,2]
[365101700,1749466260484,-4209.11,0.00024525,2]
[365101701,1749466260493,-231.28369723,0.0002455,2]
[365101702,1749466260502,-168.3888056,0.0002455,2]
[365101703,1749466260511,-1929.96,0.000246,2]
[365101704,1749466260521,-640.0,0.00024648,2]
[365101705,1749466260531,-480.0,0.00024657,2]
[365101706,1749466260540,-480.0,0.00024657,2]
[365101707,1749466260549,-185.91318012,0.00024657,2]
[365101708,1749466260561,-480.0,0.00024657,2]
[365101709,1749466260571,-480.0,0.00024657,2]
[365101710,1749466260581,-510.32669736,0.00024657,2]
[365101711,1749466260591,-480.0,0.00024657,2]
[365101712,1749466260600,-481.11001299,0.00024657,2]
[365101713,1749466260610,-502.21182974,0.00024657,2]
[365101714,1749466260619,-480.0,0.00024657,2]
[365101715,1749466260628,-469.68581883,0.00024657,2]
[365101716,1749466260638,-480.0,0.00024657,2]
[365101717,1749466260647,-258.94544677,0.00024657,2]
[365101718,1749466260659,-440.0,0.00024657,2]
[365101719,1749466260668,-475.27479184,0.00024657,2]
[365101720,1749466260677,-440.0,0.00024657,2]
[365101721,1749466260687,-480.0,0.00024657,2]
[365101722,1749466260697,-480.0,0.00024657,2]
[365101723,1749466260707,-480.0,0.00024657,2]
[365101724,1749466260717,-480.0,0.00024657,2]
[365101725,1749466260726,-480.0,0.00024657,2]
[365101726,1749466260736,-485.28717574,0.00024657,2]
[365101727,1749466260745,-440.0,0.00024657,2]
[365101728,1749466260755,-440.0,0.00024657,2]
[365101729,1749466260764,-488.9064521,0.00024657,2]
[365101730,1749466260774,-473.54052618,0.00024657,2]
[365101731,1749466260783,-480.0,0.00024657,2]
[365101732,1749466260793,-440.0,0.00024657,2]
[365101733,1749466260802,-480.0,0.00024657,2]
[365101734,1749466260812,-480.0,0.00024657,2]
[365101735,1749466260822,-504.24,0.00024657,2]
[365101736,1749466260831,-320.58643146,0.00024657,2]
[365101737,1749466260841,-480.0,0.00024657,2]
[365101738,1749466260854,-480.0,0.00024657,2]
[365101739,1749466260864,-480.0,0.00024657,2]
[365101740,1749466260873,-460.0,0.00024657,2]
[365101741,1749466260883,-480.0,0.00024657,2]
[365101742,1749466260893,-480.0,0.00024657,2]
[365101743,1749466260902,-480.0,0.00024657,2]
[365101744,1749466260912,-480.0,0.00024657,2]
[365101745,1749466260922,-440.0,0.00024657,2]
[365101746,1749466260931,-480.0,0.00024657,2]
[365101747,1749466260941,-480.0,0.00024657,2]
[365101748,1749466260950,-480.0,0.00024657,2]
[365101749,1749466260960,-460.0,0.00024657,2]
[365101750,1749466260970,-440.0,0.00024657,2]
[365101751,1749466260980,-440.0,0.00024657,2]
[365101752,1749466260989,-449.52122212,0.00024657,2]
[365101753,1749466260999,-176.66475037,0.00024657,2]
[365101754,1749466261009,-480.0,0.00024657,2]
[365101755,1749466261019,-480.0,0.00024657,2]
[365101756,1749466261029,-342.88022512,0.00024657,2]
[365101757,1749466261039,-440.0,0.00024657,2]
[365101758,1749466261049,-480.0,0.00024657,2]
[365101759,1749466261059,-480.0,0.00024657,2]
[365101760,1749466261069,-480.0,0.00024657,2]
[365101761,1749466261079,-480.0,0.00024657,2]
[365101762,1749466261089,-480.0,0.00024657,2]
[365101763,1749466261103,-480.0,0.00024657,2]
[365101764,1749466261112,-460.0,0.00024657,2]
[365101765,1749466261122,-188.07130668,0.00024657,2]
[365101766,1749466261132,-446.81533169,0.00024657,2]
[365101767,1749466261142,-480.0,0.00024657,2]
[365101768,1749466261152,-440.0,0.00024657,2]
[365101769,1749466261161,-480.0,0.00024657,2]
[365101770,1749466261171,-480.0,0.00024657,2]
[365101771,1749466261181,-480.0,0.00024657,2]